fUST/lending_fUST_20250611
["ID","MTS","AMOUNT","RATE_DAILY","PERIOD"]
[365334008,1749604251547,-460.0,0.00023835,4]
[365334010,1749604251557,-460.0,0.00023835,4]
[365334012,1749604251567,-583.85,0.00023835,4]
[365334014,1749604251576,-151.0,0.00023835,7]
[365334015,1749604251585,-460.0,0.00023835,4]
[365334017,1749604251595,-151.0,0.00023835,7]
[365334019,1749604251604,-151.0,0.00023835,7]
[365334021,1749604251613,-460.0,0.00023835,4]
[365334023,1749604251623,-460.0,0.00023835,4]
[365334025,1749604251633,-460.0,0.00023835,4]
[365334027,1749604251642,-853.23,0.00023835,4]
[365334029,1749604251651,-460.0,0.00023835,4]
[365334031,1749604251662,-1506.51,0.00023835,4]
[365334033,1749604251671,-460.0,0.00023835,4]
[365334035,1749604251680,-699.19,0.00023835,4]
[365334037,1749604251690,-578.08,0.00023835,4]
[365334039,1749604251700,-151.0,0.00023835,7]
[365334041,1749604251709,-460.0,0.00023835,4]
[365334043,1749604251718,-460.0,0.00023835,4]
[365334045,1749604251727,-460.0,0.00023835,4]
[365334047,1749604251737,-240.0,0.00023835,4]
[365334049,1749604251747,-481.45,0.00023835,4]
[365334051,1749604251756,-460.0,0.00023835,4]
[365334053,1749604251765,-3493.75,0.00023835,4]
[365334055,1749604251775,-460.0,0.00023835,4]
[365334057,1749604251784,-634.33,0.00023835,4]
[365334059,1749604251794,-460.495953,0.00023835,7]
[365334061,1749604251803,-460.495953,0.00023835,7]
[365334070,1749604251812,-757.39,0.00023835,4]
[365334072,1749604251889,-1386.6,0.00023835,4]
[365334074,1749604251898,-1629.77,0.00023835,4]
[365334076,1749604251908,-240.0,0.00023835,4]
[365334078,1749604251918,-1458.59,0.00023835,4]
[365334080,1749604251927,-460.6317678,0.00023835,2]
[365334082,1749604251936,-258.23490726,0.00023835,4]
[365334084,1749604251946,-240.0,0.00023835,4]
[365334086,1749604251955,-2065.67,0.00023835,4]
[365334088,1749604251965,-1381.68,0.00023835,4]
[365334090,1749604251974,-460.0,0.00023835,4]
[365334092,1749604251984,-2924.39,0.00023835,4]
[365334094,1749604251993,-3153.75,0.00023835,4]
[365334096,1749604252003,-708.66,0.00023835,4]
[365334098,1749604252013,-151.0,0.00023835,7]
[365334100,1749604252022,-853.41,0.00023835,4]
[365334101,1749604252032,-1263.11,0.00023835,4]
[365334102,1749604252041,-240.0,0.00023835,4]
[365334103,1749604252051,-460.0,0.00023835,4]
[365334104,1749604252060,-205.31,0.00023835,4]
[365334105,1749604252071,-460.0,0.00023835,4]
[365334106,1749604252080,-4095.109001,0.0002384,2]
[365334107,1749604252090,-151.0,0.0002384,7]
[365334108,1749604252099,-151.0,0.0002384,7]
[365334109,1749604252109,-151.0,0.0002384,7]
[365334110,1749604252118,-151.0,0.00023935,7]
[365334111,1749604252127,-2396.208569,0.00023935,2]
[365334112,1749604252137,-2396.208569,0.00023935,2]
[365334113,1749604252147,-151.0,0.00023935,7]
[365334114,1749604252156,-364.9974737,0.00023973,2]
[365334115,1749604252167,-343.8974117,0.00023973,2]
[365334116,1749604252176,-364.9974737,0.00023973,2]
[365334117,1749604252186,-364.9974737,0.00023973,2]
[365334118,1749604252195,-364.9974737,0.00023973,2]
[365334119,1749604252206,-364.9974737,0.00023973,2]
[365334120,1749604252215,-364.9974737,0.00023973,2]
[365334121,1749604252225,-363.9759917,0.00023973,2]
[365334122,1749604252235,-2000.0,0.00024,4]
[365334123,1749604252244,-403.99,0.00024,3]
[365334124,1749604252253,-500.0,0.00024,5]
[365334125,1749604252264,-173.0,0.00024,4]
[365334126,1749604252273,-173.0,0.00024,4]
[365334127,1749604252283,-173.0,0.00024,7]
[365334128,1749604252293,-173.0,0.00024,7]
[365334129,1749604252303,-173.0,0.00024,8]
[365334130,1749604252313,-173.0,0.00024,8]
[365334131,1749604252322,-151.0,0.00024,9]
[365334132,1749604252332,-1768.96,0.00024,7]
[365334134,1749604252342,-158.29,0.00024,2]
[365334135,1749604252351,-500.0,0.00024,3]
[365334137,1749604252361,-500.0,0.00024,3]
[365334139,1749604252371,-500.0,0.00024,3]
[365334141,1749604252381,-160.0,0.00024,7]
[365334143,1749604252391,-160.0,0.00024,7]
[365334145,1749604252400,-500.0,0.00024,3]
[365334147,1749604252410,-500.0,0.00024,3]
[365334149,1749604252420,-500.0,0.00024,5]
[365334151,1749604252434,-160.0,0.00024,7]
[365334152,1749604252453,-229.6792923,0.00024,7]
[365334153,1749604252469,-424.12530924,0.00024,7]
[365334154,1749604252486,-33813.00461796,0.00024,2]
[365334155,1749604252505,-834.9046531,0.00024,7]
[365334156,1749604252524,-160.0,0.00024,7]
[365334157,1749604252541,-1179.235199,0.00024009,3]
[365334158,1749604252557,-162.70720017,0.00024027,2]
[365334159,1749604252574,-151.0,0.000241,8]
[365334160,1749604252588,-720.89,0.000241,7]
[365334161,1749604252606,-1802.32408577,0.000241,2]
[365334164,1749604252624,-460.0,0.00024109,4]
[365334167,1749604252643,-460.0,0.00024109,4]
[365334169,1749604252657,-460.0,0.00024109,4]
[365334170,1749604252674,-367.86457396,0.00024109,4]
[365334171,1749604252694,-460.0,0.00024109,4]
[365334172,1749604252710,-853.23,0.00024109,4]
[365334173,1749604252727,-460.0,0.00024109,4]
[365334174,1749604252740,-1506.51,0.00024109,4]
[365334175,1749604252754,-240.0,0.00024109,4]
[365334176,1749604252768,-699.19,0.00024109,4]
[365334177,1749604252783,-578.08,0.00024109,4]
[365334178,1749604252797,-460.0,0.00024109,4]
[365334179,1749604252811,-460.0,0.00024109,4]
[365334180,1749604252825,-460.0,0.00024109,4]
[365334181,1749604252839,-460.0,0.00024109,4]
[365334182,1749604252852,-3493.75,0.00024109,4]
[365334183,1749604252867,-497.8,0.00024109,4]
[365334184,1749604252881,-634.33,0.00024109,4]
[365334185,1749604252894,-757.39,0.00024109,4]
[365334186,1749604252909,-1386.6,0.00024109,4]
[365334187,1749604252923,-1629.77,0.00024109,4]
[365334188,1749604252933,-1458.59,0.00024109,4]
[365334189,1749604252942,-2065.67,0.00024109,4]
[365334190,1749604252951,-1381.68,0.00024109,4]
[365334191,1749604252961,-460.0,0.00024109,4]
[365334192,1749604252970,-2924.39,0.00024109,4]
[365334193,1749604252980,-3153.75,0.00024109,4]
[365334194,1749604252989,-708.66,0.00024109,4]
[365334195,1749604252999,-853.41,0.00024109,4]
[365334196,1749604253008,-1263.11,0.00024109,4]
[365334197,1749604253018,-460.0,0.00024109,4]
[365334198,1749604253027,-460.0,0.00024109,4]
[365334199,1749604253037,-1146.7080698,0.0002411,2]
[365334200,1749604253047,-306.0,0.0002411,2]
[365334201,1749604253057,-4538.86457504,0.0002411,3]
[365334202,1749604253066,-153.102215,0.0002411,7]
[365334203,1749604253075,-12500.0,0.0002411,3]
[365334204,1749604253085,-3000.0,0.00024164,2]
[365334205,1749604253097,-2500.0,0.00024164,2]
[365334206,1749604253106,-1802.32408572,0.00024185,2]
[365334207,1749604253115,-3693.28,0.00024192,2]
[365334208,1749604253125,-39439.0,0.000242,7]
[365334209,1749604253135,-151.0,0.000242,7]
[365334210,1749604253144,-270.713766,0.000242,7]
[365334211,1749604253154,-151.0,0.000242,7]
[365334212,1749604253342,-151.0,0.000242,7]
[365334213,1749604253354,-151.0,0.000242,7]
[365334214,1749604253364,-151.0,0.000242,7]
[365334215,1749604253373,-357.900001,0.000242,7]
[365334216,1749604253383,-357.900001,0.000242,7]
[365334217,1749604253392,-151.000001,0.000242,7]
[365334218,1749604253401,-151.0,0.000242,7]
[365334219,1749604253412,-377.0,0.00024203,2]
[365334220,1749604253421,-377.0,0.00024253,2]
[365334221,1749604253430,-151.0,0.00024255,7]
[365334222,1749604253440,-151.0,0.00024255,7]
[365334223,1749604253450,-151.0,0.00024255,7]
[365334224,1749604253459,-693.685656,0.00024255,7]
[365334225,1749604253469,-693.685656,0.00024255,7]
[365334226,1749604253478,-151.0,0.00024255,7]
[365334227,1749604253487,-151.0,0.00024255,7]
[365334228,1749604253496,-151.0,0.00024255,7]
[365334229,1749604253506,-151.0,0.00024255,7]
[365334230,1749604253515,-460.495953,0.00024255,7]
[365334231,1749604253527,-460.495953,0.00024255,7]
[365334232,1749604253537,-151.0,0.00024255,7]
[365334233,1749604253547,-168.0,0.00024268,2]
[365334234,1749604253556,-1802.32408572,0.00024271,2]
[365334235,1749604253567,-151.0,0.000243,8]
[365334236,1749604253576,-151.0,0.000243,10]
[365334237,1749604253586,-54711.3,0.000243,7]
[365334238,1749604253596,-151.0,0.000243,7]
[365334239,1749604253605,-500.0,0.000243,2]
[365334240,1749604253615,-500.0,0.000243,2]
[365334241,1749604253624,-500.0,0.000243,2]
[365334242,1749604253634,-500.0,0.000243,3]
[365334243,1749604253644,-500.0,0.000243,3]
[365334244,1749604253653,-2396.208569,0.000243,2]
[365334245,1749604253663,-2396.208569,0.000243,2]
[365334246,1749604253672,-151.0,0.000243,7]
[365334247,1749604253681,-5000.0,0.000243,2]
[365334248,1749604253692,-260.95645424,0.0002431,2]
[365334249,1749604253701,-700.0,0.00024352,2]
[365334250,1749604253711,-1802.32408572,0.00024356,2]
[365334251,1749604253720,-151.0,0.00024367,7]
[365334252,1749604253729,-122117.24184415,0.0002438,2]
[365334253,1749604253739,-151.0,0.0002438,7]
[365334254,1749604253748,-170.70982885,0.00024383,4]
[365334255,1749604253758,-151.0,0.00024383,7]
[365334256,1749604253768,-460.0,0.00024383,4]
[365334257,1749604253778,-460.0,0.00024383,4]
[365334258,1749604253787,-460.0,0.00024383,4]
[365334259,1749604253797,-460.0,0.00024383,4]
[365334260,1749604253807,-853.23,0.00024383,4]
[365334261,1749604253816,-460.0,0.00024383,4]
[365334262,1749604253826,-1506.51,0.00024383,4]
[365334263,1749604253835,-699.19,0.00024383,4]
[365334264,1749604253844,-578.08,0.00024383,4]
[365334265,1749604253854,-540.0,0.00024383,4]
[365334266,1749604253863,-460.0,0.00024383,4]
[365334267,1749604253872,-375.7,0.00024383,4]
[365334268,1749604253882,-460.0,0.00024383,4]
[365334269,1749604253891,-3493.75,0.00024383,4]
[365334270,1749604253901,-634.33,0.00024383,4]
[365334271,1749604253911,-757.39,0.00024383,4]
[365334272,1749604253920,-1386.6,0.00024383,4]
[365334273,1749604253929,-1629.77,0.00024383,4]
[365334274,1749604253939,-1458.59,0.00024383,4]
[365334275,1749604253948,-2065.67,0.00024383,4]
[365334276,1749604253958,-1381.68,0.00024383,4]
[365334277,1749604253968,-460.0,0.00024383,4]
[365334278,1749604253977,-2924.39,0.00024383,4]
[365334279,1749604253987,-3153.75,0.00024383,4]
[365334280,1749604253996,-708.66,0.00024383,4]
[365334281,1749604254006,-853.41,0.00024383,4]
[365334282,1749604254015,-1263.11,0.00024383,4]
[365334283,1749604254024,-596.73,0.00024383,4]
[365334284,1749604254034,-460.0,0.00024383,4]
[365334285,1749604254043,-151.0,0.000244,7]
[365334286,1749604254053,-151.0,0.000244,6]
[365334287,1749604254062,-45805.59,0.000244,2]
[365334288,1749604254072,-168.0,0.00024428,2]
[365334289,1749604254081,-1802.32408572,0.00024441,2]
[365334290,1749604254091,-1744.0,0.0002445,3]
[365334291,1749604254100,-1744.0,0.0002445,3]
[365334292,1749604254110,-1744.0,0.0002445,3]
[365334293,1749604254119,-1744.0,0.0002445,3]
[365334294,1749604254128,-1744.0,0.0002445,3]
[365334295,1749604254138,-1744.0,0.0002445,3]
[365334296,1749604254147,-1744.0,0.0002445,3]
[365334297,1749604254156,-1744.0,0.0002445,3]
[365334298,1749604254166,-1744.0,0.0002445,3]
[365334299,1749604254176,-1744.0,0.0002445,3]
[365334300,1749604254185,-1744.0,0.0002445,3]
[365334301,1749604254194,-1744.0,0.0002445,3]
[365334302,1749604254204,-1744.0,0.0002445,3]
[365334303,1749604254213,-1744.0,0.0002445,3]
[365334304,1749604254223,-1744.0,0.0002445,3]
[365334305,1749604254232,-1744.0,0.0002445,3]
[365334306,1749604254242,-1744.0,0.0002445,3]
[365334307,1749604254251,-1744.0,0.0002445,3]
[365334308,1749604254260,-1744.0,0.0002445,3]
[365334309,1749604254270,-1744.0,0.0002445,3]
[365334310,1749604254279,-1392.40905229,0.0002445,3]
[365334311,1749604254288,-151.0,0.0002445,7]
[365334312,1749604254298,-151.0,0.0002445,7]
[365334313,1749604254307,-151.0,0.0002445,7]
[365334314,1749604254316,-151.0,0.0002445,7]
[365334315,1749604254326,-151.0,0.0002445,7]
[365334316,1749604254335,-357.900001,0.0002445,7]
[365334317,1749604254344,-357.900001,0.0002445,7]
[365334318,1749604254353,-151.0,0.0002445,7]
[365334319,1749604254362,-151.0,0.0002445,7]
[365334320,1749604254372,-151.0,0.0002445,7]
[365334321,1749604254380,-151.0,0.0002445,7]
[365334322,1749604254390,-177.340428,0.0002445,7]
[365334323,1749604254399,-265.38534,0.0002445,7]
[365334324,1749604254409,-460.495953,0.0002445,7]
[365334325,1749604254420,-460.495953,0.0002445,7]
[365334326,1749604254429,-151.0,0.0002445,7]
[365334327,1749604254438,-196.75563594,0.00024452,2]
[365334328,1749604254448,-200.0,0.0002446,10]
[365334329,1749604254457,-151.0,0.00024468,7]
[365334330,1749604254467,-151.0,0.00024468,7]
[365334331,1749604254476,-151.0,0.00024468,7]
[365334332,1749604254485,-207.02732177,0.00024499,2]
[365334333,1749604254495,-280.35957518,0.00024499,2]
[365334334,1749604254505,-391148.81454025,0.000245,3]
[365334335,1749604254584,-270.632224,0.000245,3]
[365334336,1749604254622,-2559.9331591,0.000219,6]
[365334337,1749604254631,-1228.61530544,0.00022003,6]
[365334338,1749604254825,-460.0,0.00021095,4]
[365334339,1749604254835,-1331.31785356,0.00022003,6]
[365334340,1749604254845,-2559.933159,0.00022107,6]
[365334341,1749604254854,-177.9,0.00022191,4]
[365334342,1749604254864,-2559.933159,0.0002221,6]
[365334343,1749604254873,-2559.933159,0.00022314,7]
[365334344,1749604254882,-2559.933159,0.00022417,7]
[365334345,1749604254891,-2559.933159,0.00022521,7]
[365334346,1749604254900,-801.29556809,0.00022624,7]
[365334363,1749604356132,200.0,0.000247,120]
[365334364,1749604356153,200.0,0.000247,120]
[365334371,1749604508675,244.15281,0.00013699,2]
[365334392,1749605183072,-392.65,0.00019549,2]
[365334393,1749605183094,-244.15281,0.00020187,2]
[365334394,1749605183116,-785.31,0.00020479,2]
[365334395,1749605183137,-600.0,0.00021064,2]
[365334396,1749605183159,-460.0,0.00021095,4]
[365334397,1749605183181,-460.0,0.00021095,4]
[365334398,1749605183204,-300.0,0.00021363,2]
[365334399,1749605183247,-300.0,0.00021364,2]
[365334400,1749605183271,-798.0,0.00021364,2]
[365334401,1749605183293,-300.0,0.00021364,2]
[365334402,1749605183315,-460.0,0.00021365,4]
[365334403,1749605183339,-460.0,0.00021365,4]
[365334404,1749605183361,-460.0,0.00021365,4]
[365334405,1749605183383,-460.0,0.00021365,4]
[365334406,1749605183407,-460.0,0.00021365,4]
[365334407,1749605183431,-460.0,0.00021365,4]
[365334408,1749605183455,-460.0,0.00021365,4]
[365334409,1749605183479,-790.07,0.00021365,4]
[365334410,1749605183503,-1819.99,0.00021365,4]
[365334411,1749605183527,-882.79,0.00021365,4]
[365334412,1749605183550,-460.0,0.00021365,4]
[365334413,1749605183573,-1793.79,0.00021365,4]
[365334414,1749605183594,-460.0,0.00021365,4]
[365334415,1749605183617,-460.0,0.00021365,4]
[365334416,1749605183639,-1118.91,0.00021365,4]
[365334417,1749605183662,-751.07,0.00021365,4]
[365334418,1749605183686,-1708.28,0.00021365,4]
[365334419,1749605183709,-894.98719,0.00021365,4]
[365334462,1749605320251,150.999999,0.0002,120]
[365334463,1749605320938,151.0,0.00024947,120]
[365334497,1749605432198,-180.65305929,0.00019072,6]
[365334499,1749605432209,-499.70763443,0.00019265,2]
[365334500,1749605432218,-385.74,0.00019605,2]
[365334502,1749605432227,-600.0,0.00019968,2]
[365334504,1749605432236,-190.97557628,0.0002,2]
[365334506,1749605432248,-100.58989374,0.0002,2]
[365334508,1749605432257,-771.48,0.00020539,2]
[365334510,1749605432267,-600.0,0.00021064,2]
[365334512,1749605432277,-462.26,0.00021365,4]
[365334514,1749605432286,-460.0,0.00021365,4]
[365334516,1749605432296,-460.0,0.00021365,4]
[365334518,1749605432306,-702.52,0.00021365,4]
[365334521,1749605432322,-460.0,0.00021365,4]
[365334523,1749605432336,-460.0,0.00021365,4]
[365334526,1749605432345,-240.0,0.00021365,4]
[365334528,1749605432355,-460.0,0.00021365,4]
[365334530,1749605432364,-1970.74,0.00021365,4]
[365334532,1749605432374,-460.0,0.00021365,4]
[365334534,1749605432383,-460.0,0.00021365,4]
[365334536,1749605432392,-494.57,0.00021365,4]
[365334538,1749605432402,-887.66,0.00021365,4]
[365334540,1749605432413,-460.0,0.00021365,4]
[365334542,1749605432423,-460.0,0.00021365,4]
[365334544,1749605432433,-497.8,0.00021365,4]
[365334545,1749605432442,-440.0,0.00021365,4]
[365334546,1749605432452,-460.0,0.00021365,4]
[365334547,1749605432461,-440.0,0.00021365,4]
[365334548,1749605432474,-793.82,0.00021365,4]
[365334549,1749605432492,-460.0,0.00021365,4]
[365334550,1749605432502,-460.0,0.00021365,4]
[365334551,1749605432511,-1924.5,0.00021365,4]
[365334552,1749605432521,-460.0,0.00021365,4]
[365334553,1749605432531,-205.31,0.00021365,4]
[365334554,1749605432540,-240.0,0.00021365,4]
[365334555,1749605432549,-460.0,0.00021365,4]
[365334556,1749605432559,-111.69309033,0.00021365,4]
[365334603,1749605438422,-684.19690967,0.00021365,4]
[365334605,1749605438432,-460.0,0.00021365,4]
[365334607,1749605438442,-824.32,0.00021365,4]
[365334609,1749605438451,-584.49577776,0.00021365,4]
[365334611,1749605438461,-174.96661719,0.00021365,4]
[365334613,1749605438470,-460.0,0.00021365,4]
[365334615,1749605438479,-175.59118836,0.00021365,4]
[365334617,1749605438501,-729.69,0.00021365,4]
[365334619,1749605438512,-460.0,0.00021366,4]
[365334621,1749605438523,-440.0,0.00021366,4]
[365334623,1749605438534,-185.725,0.00021369,2]
[365334625,1749605438544,-440.0,0.00021425,4]
[365334627,1749605438553,-440.0,0.00021425,4]
[365334629,1749605438562,-460.0,0.00021425,4]
[365334631,1749605438571,-932.25,0.00021425,4]
[365334633,1749605438580,-543.18467872,0.00021425,4]
[365334635,1749605438590,-268.53973414,0.00021425,4]
[365334637,1749605438599,-1183.01,0.00021425,4]
[365334639,1749605438608,-973.3,0.00021425,4]
[365334641,1749605438618,-1157.22,0.00021473,2]
[365334643,1749605438627,-171.20918485,0.00021538,2]
[365334646,1749605438636,-799.85349,0.00021638,2]
[365334648,1749605438646,-440.0,0.00021638,4]
[365334650,1749605438655,-1737.38,0.00021638,4]
[365334651,1749605438664,-1788.68,0.00021638,4]
[365334653,1749605438673,-790.05,0.00021638,4]
[365334655,1749605438682,-460.0,0.00021639,4]
[365334657,1749605438691,-460.0,0.00021639,4]
[365334659,1749605438700,-462.26,0.00021639,4]
[365334662,1749605438709,-596.73,0.00021639,4]
[365334664,1749605438719,-460.0,0.00021639,4]
[365334666,1749605438728,-460.0,0.00021639,4]
[365334668,1749605438737,-460.0,0.00021639,4]
[365334670,1749605438746,-460.0,0.00021639,4]
[365334672,1749605438755,-1970.74,0.00021639,4]
[365334674,1749605438764,-200.0,0.00021639,4]
[365334676,1749605438774,-460.0,0.00021639,4]
[365334678,1749605438783,-494.57,0.00021639,4]
[365334680,1749605438793,-887.66,0.00021639,4]
[365334682,1749605438802,-460.0,0.00021639,4]
[365334684,1749605438812,-460.0,0.00021639,4]
[365334686,1749605438821,-540.0,0.00021639,4]
[365334688,1749605438831,-793.82,0.00021639,4]
[365334690,1749605438841,-460.0,0.00021639,4]
[365334692,1749605438849,-460.0,0.00021639,4]
[365334694,1749605438859,-1924.5,0.00021639,4]
[365334696,1749605438869,-460.0,0.00021639,4]
[365334698,1749605438878,-460.0,0.00021639,4]
[365334700,1749605438888,-795.89,0.00021639,4]
[365334702,1749605438897,-460.0,0.00021639,4]
[365334704,1749605438907,-824.32,0.00021639,4]
[365334706,1749605438920,-460.0,0.00021639,4]
[365334708,1749605438930,-460.0,0.0002164,4]
[365334710,1749605438939,-460.0,0.00021699,4]
[365334712,1749605438949,-932.25,0.00021699,4]
[365334714,1749605438958,-1183.01,0.00021699,4]
[365334716,1749605438970,-973.3,0.00021699,4]
[365334718,1749605438981,-1935.90556964,0.000219,6]
[365334720,1749605439002,-1737.38,0.00021912,4]
[365334722,1749605439022,-1788.68,0.00021912,4]
[365334724,1749605439033,-790.05,0.00021912,4]
[365334726,1749605439043,-609.64014727,0.00021913,4]
[365334728,1749605439052,-460.0,0.00021913,4]
[365334730,1749605439061,-462.26,0.00021913,4]
[365334732,1749605439071,-460.0,0.00021913,4]
[365334734,1749605439080,-460.0,0.00021913,4]
[365334736,1749605439089,-460.0,0.00021913,4]
[365334738,1749605439099,-460.0,0.00021913,4]
[365334740,1749605439108,-1970.74,0.00021913,4]
[365334742,1749605439117,-278.759,0.00021913,4]
[365334744,1749605439126,-494.57,0.00021913,4]
[365334746,1749605439135,-887.66,0.00021913,4]
[365334748,1749605439144,-460.0,0.00021913,4]
[365334750,1749605439153,-460.0,0.00021913,4]
[365334752,1749605439163,-793.82,0.00021913,4]
[365334754,1749605439172,-460.0,0.00021913,4]
[365334756,1749605439181,-460.0,0.00021913,4]
[365334758,1749605439190,-1924.5,0.00021913,4]
[365334760,1749605439200,-460.0,0.00021913,4]
[365334762,1749605439209,-460.0,0.00021913,4]
[365334764,1749605439218,-795.89,0.00021913,4]
[365334766,1749605439227,-460.0,0.00021913,4]
[365334768,1749605439236,-824.32,0.00021913,4]
[365334770,1749605439245,-460.0,0.00021913,4]
[365334772,1749605439254,-460.0,0.00021914,4]
[365334774,1749605439263,-205.76176057,0.00021917,2]
[365334776,1749605439272,-460.0,0.00021973,4]
[365334778,1749605439282,-932.25,0.00021973,4]
[365334780,1749605439291,-1183.01,0.00021973,4]
[365334782,1749605439300,-973.3,0.00021973,4]
[365334784,1749605439309,-350.85084951,0.00022,2]
[365334786,1749605439318,-21453.5015302,0.00022,2]
[365334788,1749605439327,-20226.78422162,0.00022,2]
[365334790,1749605439336,-66656.482941,0.00022,2]
[365334792,1749605439345,-606.74,0.00022,7]
[365334794,1749605439354,-1935.90556963,0.00022003,6]
[365334796,1749605439363,-1935.90556963,0.00022107,6]
[365334798,1749605439374,-600.0,0.0002216,2]
[365334800,1749605439383,-1737.38,0.00022186,4]
[365334802,1749605439393,-1788.68,0.00022186,4]
[365334804,1749605439403,-790.05,0.00022186,4]
[365334806,1749605439412,-400.0,0.00022187,4]
[365334808,1749605439424,-462.26,0.00022187,4]
[365334810,1749605439433,-150.7,0.00022187,4]
[365334812,1749605439444,-460.0,0.00022187,4]
[365334814,1749605439454,-460.0,0.00022187,4]
[365334816,1749605439464,-460.0,0.00022187,4]
[365334817,1749605439474,-1970.74,0.00022187,4]
[365334819,1749605439484,-494.57,0.00022187,4]
[365334821,1749605439494,-887.66,0.00022187,4]
[365334823,1749605439505,-580.0,0.00022187,4]
[365334825,1749605439515,-460.0,0.00022187,4]
[365334827,1749605439525,-793.82,0.00022187,4]
[365334829,1749605439534,-180.0,0.00022187,4]
[365334831,1749605439544,-460.0,0.00022187,4]
[365334833,1749605439553,-1924.5,0.00022187,4]
[365334835,1749605439567,-460.0,0.00022187,4]
[365334837,1749605439584,-460.0,0.00022187,4]
[365334839,1749605439593,-795.89,0.00022187,4]
[365334841,1749605439603,-460.0,0.00022187,4]
[365334843,1749605439612,-824.32,0.00022187,4]
[365334845,1749605439622,-460.0,0.00022187,4]
[365334847,1749605439631,-460.0,0.00022188,4]
[365334849,1749605439641,-151.0,0.00022191,7]
[365334851,1749605439650,-151.0,0.00022191,7]
[365334853,1749605439660,-151.0,0.00022191,7]
[365334855,1749605439671,-166.31295545,0.000222,69]
[365334857,1749605439681,-1935.90556963,0.0002221,6]
[365334860,1749605439691,-460.0,0.00022247,4]
[365334862,1749605439701,-932.25,0.00022247,4]
[365334864,1749605439710,-1183.01,0.00022247,4]
[365334866,1749605439719,-973.3,0.00022247,4]
[365334867,1749605439728,-1935.90556963,0.00022314,7]
[365334868,1749605439738,-1542.96,0.00022406,2]
[365334869,1749605439747,-1935.90556963,0.00022417,7]
[365334870,1749605439757,-1737.38,0.0002246,4]
[365334871,1749605439766,-1788.68,0.0002246,4]
[365334872,1749605439776,-790.05,0.0002246,4]
[365334874,1749605439786,-462.26,0.00022461,4]
[365334875,1749605439795,-460.0,0.00022461,4]
[365334876,1749605439805,-460.0,0.00022461,4]
[365334878,1749605439814,-460.0,0.00022461,4]
[365334879,1749605439824,-1970.74,0.00022461,4]
[365334880,1749605439833,-494.57,0.00022461,4]
[365334881,1749605439843,-887.66,0.00022461,4]
[365334882,1749605439853,-460.0,0.00022461,4]
[365334883,1749605439862,-793.82,0.00022461,4]
[365334884,1749605439872,-460.0,0.00022461,4]
[365334885,1749605439882,-1924.5,0.00022461,4]
[365334886,1749605439891,-460.0,0.00022461,4]
[365334887,1749605439901,-460.0,0.00022461,4]
[365334888,1749605439914,-795.89,0.00022461,4]
[365334889,1749605439928,-460.0,0.00022461,4]
[365334890,1749605439939,-824.32,0.00022461,4]
[365334891,1749605439948,-460.0,0.00022461,4]